bitfinex/quotes_BTCUSD_20250204
["timestamp","ask_amount","ask_price","bid_price","bid_amount"]
[1738689903502,5.70125884,99019.0,99018.0,0.00023509]
[1738689903719,5.80375356,99019.0,99018.0,0.00023509]
[1738689903922,5.92913862,99019.0,99018.0,0.00023509]
[1738689904913,5.92613862,99019.0,99018.0,0.00023509]
[1738689905121,5.91813862,99019.0,99018.0,0.00023509]
[1738689905321,6.06813862,99019.0,99018.0,0.00023509]
[1738689905568,6.07013862,99019.0,99018.0,0.00023509]
[1738689905762,6.06813862,99019.0,99018.0,0.00023509]
[1738689905964,6.09800373,99019.0,99018.0,0.00023509]
[1738689906198,6.10500373,99019.0,99018.0,0.00023509]
[1738689906608,6.10800373,99019.0,99018.0,0.00023509]
[1738689906811,0.151501,99009.0,98990.0,0.1247]
[1738689907101,0.25388606,99009.0,98990.0,0.1247]
[1738689907310,0.174512,99002.0,98990.0,0.0461]
[1738689907557,0.151516,98999.0,98990.0,0.0461]
[1738689907767,0.37939578,98999.0,98990.0,0.0461]
[1738689908175,1.87939578,98999.0,98990.0,0.0461]
[1738689908536,1.8380745,98999.0,98990.0,0.0461]
[1738689909256,1.8490745,98999.0,98990.0,0.0461]
[1738689909688,1.82519342,98999.0,98990.0,0.0461]
[1738689909838,1.83319342,98999.0,98990.0,0.0461]
[1738689910058,1.83619342,98999.0,98990.0,0.0461]
[1738689910287,1.82819342,98999.0,98990.0,0.0461]
[1738689910588,1.8180745,98999.0,98990.0,0.0461]
[1738689910736,1.8278345,98999.0,98990.0,0.0461]
[1738689910945,1.93032922,98999.0,98990.0,0.0461]
[1738689911333,1.92732922,98999.0,98990.0,0.0461]
[1738689911551,1.6813185,98999.0,98990.0,0.0461]
[1738689911983,1.6733185,98999.0,98990.0,0.0461]
[1738689912223,1.6813185,98999.0,98990.0,0.0461]
[1738689912719,1.6733185,98999.0,98990.0,0.0461]
[1738689912911,1.6733185,98999.0,98998.0,0.076407]
[1738689912912,1.57893344,98999.0,98998.0,0.076407]
[1738689913095,1.57393344,98999.0,98998.0,0.076407]
[1738689913335,1.56417344,98999.0,98998.0,0.076407]
[1738689913541,1.56917344,98999.0,98998.0,0.076407]
[1738689913934,1.56917344,98999.0,98998.0,0.123007]
[1738689914338,1.52368476,98999.0,98998.0,0.123007]
[1738689914492,0.02368476,98999.0,98998.0,0.123007]
[1738689914839,0.01868476,98999.0,98998.0,0.123007]
[1738689915090,0.01968476,98999.0,98998.0,0.123007]
[1738689915224,0.01868476,98999.0,98998.0,0.123007]
[1738689915432,0.01868476,98999.0,98998.0,0.124007]
[1738689918712,0.01868476,98999.0,98998.0,0.275525]
[1738689918956,1.5,99009.0,99008.0,0.151502]
[1738689919688,4.0,99019.0,99008.0,0.279]
[1738689919889,4.0,99019.0,99018.0,0.151487]
[1738689920094,4.0,99019.0,99018.0,0.280687]
[1738689920308,4.01873041,99019.0,99018.0,0.280687]
[1738689920519,4.01873041,99019.0,99018.0,0.1292]
[1738689921065,4.17021641,99019.0,99018.0,0.1292]
[1738689921276,4.17021641,99019.0,99018.0,0.0481]
[1738689921653,5.67021641,99019.0,99018.0,0.0491]
[1738689922209,5.51873041,99019.0,99018.0,0.0481]
[1738689923233,5.5,99019.0,99018.0,0.0481]
[1738689923647,5.5,99019.0,99018.0,0.199587]
[1738689924059,5.5,99019.0,99018.0,0.0481]
[1738689924297,5.5,99019.0,99018.0,0.0491]
[1738689924854,5.5,99019.0,99018.0,0.200587]
[1738689925353,4.0,99019.0,99018.0,0.0501]
[1738689925543,4.0,99019.0,99018.0,0.0481]
[1738689925755,5.651486,99019.0,99018.0,0.0481]
[1738689925995,5.651486,99019.0,99018.0,0.0501]
[1738689926320,5.661246,99019.0,99018.0,0.0491]
[1738689926526,5.50976,99019.0,99018.0,0.0491]
[1738689926858,5.52845967,99019.0,99018.0,0.0491]
[1738689927323,5.52845967,99019.0,99018.0,0.200587]
[1738689927324,4.01869967,99019.0,99018.0,0.200587]
[1738689927928,4.0,99019.0,99018.0,0.200587]
[1738689928436,4.0,99019.0,99018.0,0.199587]
[1738689928583,4.0,99019.0,99018.0,0.275687]
[1738689928924,4.00544261,99019.0,99018.0,0.275687]
[1738689929334,4.00544261,99019.0,99018.0,0.425687]
[1738689930218,4.00544261,99019.0,99018.0,0.52807206]
[1738689931000,4.0,99019.0,99018.0,0.53007206]
[1738689931155,4.0,99019.0,99018.0,0.52907206]
[1738689931382,4.0002245,99019.0,99018.0,0.52807206]
[1738689931595,4.0002245,99019.0,99018.0,0.52907206]
[1738689931796,4.0002245,99019.0,99018.0,0.53007206]
[1738689932797,4.0002245,99019.0,99018.0,0.427687]
[1738689933930,4.0002245,99019.0,99018.0,0.425687]
[1738689934267,4.0002245,99019.0,99018.0,0.427687]
[1738689934689,4.0002245,99019.0,99018.0,0.425687]
[1738689934883,4.0002245,99019.0,99018.0,0.426687]
[1738689936218,4.0002245,99019.0,99018.0,0.52907206]
[1738689936704,4.0002245,99019.0,99018.0,0.53007206]
[1738689937105,4.0002245,99019.0,99018.0,0.52907206]
[1738689937518,4.0002245,99019.0,99018.0,0.53007206]
[1738689937659,4.0002245,99019.0,99018.0,0.52907206]
[1738689938119,4.0002245,99019.0,99018.0,0.53007206]
[1738689938326,4.0002245,99019.0,99018.0,0.52907206]
[1738689939484,4.0002245,99019.0,99018.0,0.52807206]
[1738689939855,4.0002245,99019.0,99018.0,0.52907206]
[1738689940255,4.0002245,99019.0,99018.0,0.53007206]
[1738689940597,4.0002245,99019.0,99018.0,0.52907206]
[1738689940797,4.0002245,99019.0,99018.0,0.53007206]
[1738689940994,4.0002245,99019.0,99018.0,0.52907206]
[1738689941403,4.0002245,99019.0,99018.0,0.53007206]
[1738689942408,4.0002245,99019.0,99018.0,0.52907206]
[1738689942868,4.0002245,99019.0,99018.0,0.53007206]
[1738689943211,4.0002245,99019.0,99018.0,0.52907206]
[1738689943618,4.0002245,99019.0,99018.0,0.53007206]
[1738689944439,4.0002245,99019.0,99018.0,0.52907206]
[1738689945659,4.0002245,99019.0,99018.0,0.52807206]
[1738689945856,4.0002245,99019.0,99018.0,0.52907206]
[1738689946069,4.0002245,99019.0,99018.0,0.59345384]
[1738689946603,3.9800265,99019.0,99018.0,0.59345384]
[1738689946770,3.9800265,99019.0,99018.0,0.59445384]
[1738689947476,3.8694325,99019.0,99018.0,1.13565384]
[1738689947751,3.8290365,99019.0,99018.0,1.13565384]
[1738689947979,3.8290365,99019.0,99018.0,1.13365384]
[1738689948248,3.7009365,99019.0,99018.0,1.13465384]
[1738689948434,3.4718465,99019.0,99018.0,1.14565384]
[1738689948797,3.4718465,99019.0,99018.0,1.14465384]
[1738689948993,3.4718465,99019.0,99018.0,1.14565384]
[1738689949418,3.4112525,99019.0,99018.0,1.14565384]
[1738689949623,3.4112525,99019.0,99018.0,1.12265384]
[1738689949782,3.4112525,99019.0,99018.0,1.09127206]
[1738689949980,3.4112525,99019.0,99018.0,0.37907206]
[1738689950484,3.4112525,99019.0,99018.0,0.53007206]
[1738689950699,3.4112525,99019.0,99018.0,0.37807206]
[1738689951063,3.3922525,99019.0,99018.0,0.33097206]
[1738689951676,3.3922525,99019.0,99018.0,0.51297206]
[1738689952278,3.3922525,99019.0,99018.0,0.50397206]
[1738689952670,3.3922525,99019.0,99018.0,0.51397206]
[1738689952910,3.3922525,99019.0,99018.0,0.48097206]
[1738689953455,3.3922525,99019.0,99018.0,0.47997206]
[1738689953652,3.3922525,99019.0,99018.0,0.25487206]
[1738689954099,3.3922525,99019.0,99018.0,0.40387206]
[1738689954315,3.3922525,99019.0,99018.0,0.40487206]
[1738689954514,3.3922525,99019.0,99018.0,0.001]
[1738689954749,3.3922525,99019.0,99018.0,0.151487]
[1738689954961,3.3922525,99019.0,99018.0,0.152487]
[1738689955164,3.3922525,99019.0,99018.0,0.001]
[1738689955991,3.82381828,99019.0,99018.0,0.001]
[1738689956212,3.78058356,99019.0,99018.0,0.001]
[1738689956448,3.93058356,99019.0,99018.0,0.001]
[1738689956658,0.151512,99002.0,99001.0,0.0001069]
[1738689956896,3.62909756,99019.0,99001.0,0.0001069]
[1738689957010,3.5267125,99019.0,99010.0,0.151498]
[1738689957210,3.5267125,99019.0,99018.0,0.0001068]
[1738689957433,3.5317125,99019.0,99018.0,0.0001068]
[1738689957801,3.6781985,99019.0,99018.0,0.0001068]
[1738689958550,3.6801985,99019.0,99018.0,0.0001068]
[1738689958959,3.69890479,99019.0,99018.0,0.0001068]
[1738689959683,3.70390479,99019.0,99018.0,0.0001068]
[1738689960044,5.20390479,99019.0,99018.0,0.0001068]
[1738689960681,5.55878457,99019.0,99018.0,0.0001068]
[1738689961116,0.301512,99002.0,99001.0,0.0001069]
[1738689961324,0.53359706,99002.0,99001.0,0.0001069]
[1738689961785,0.57530335,99002.0,99001.0,0.0001069]
[1738689962415,2.07530335,99002.0,99001.0,0.0001069]
[1738689963208,2.08330335,99002.0,99001.0,0.0001069]
[1738689963395,2.07530335,99002.0,99001.0,0.0001069]
[1738689963581,2.08430335,99002.0,99001.0,0.0001069]
[1738689963789,2.11419426,99002.0,99001.0,0.0001069]
[1738689963942,2.10519426,99002.0,99001.0,0.0001069]
[1738689964147,2.11419426,99002.0,99001.0,0.0001069]
[1738689964350,2.11719426,99002.0,99001.0,0.0001069]
[1738689964574,2.19121888,99002.0,99001.0,0.0001069]
[1738689964772,2.20155308,99002.0,99001.0,0.0001069]
[1738689965294,2.20155308,99002.0,98977.0,0.0001068]
[1738689965295,0.202026,98997.0,98977.0,0.0001068]
[1738689965498,0.301531,98989.0,98977.0,0.0001068]
[1738689965722,0.42691606,98989.0,98988.0,0.00057684]
[1738689966095,0.50851606,98989.0,98988.0,0.00057684]
[1738689966300,2.00851606,98989.0,98988.0,0.00057684]
[1738689966621,2.11101078,98989.0,98988.0,0.00057684]
[1738689966824,2.06611326,98989.0,98988.0,0.00057684]
[1738689967350,2.11151326,98989.0,98988.0,8.4e-07]
[1738689967567,0.43414798,98978.0,98977.0,0.0001068]
[1738689967771,0.55953304,98978.0,98977.0,0.00018749]
[1738689967951,0.60813024,98978.0,98977.0,0.00018749]
[1738689968341,2.09813026,98978.0,98977.0,0.00018749]
[1738689968550,2.10813024,98978.0,98977.0,0.00018749]
[1738689969401,2.10713026,98978.0,98977.0,0.00018749]
[1738689969574,2.11724682,98978.0,98977.0,0.00018749]
[1738689969774,2.12987357,98978.0,98977.0,0.00018749]
[1738689969982,2.16967997,98978.0,98977.0,0.00018749]
[1738689970199,2.16967997,98978.0,98937.0,0.0149383]
[1738689970200,0.0458,98951.0,98937.0,0.0149383]
[1738689970378,0.11940437,98950.0,98942.0,0.151602]
[1738689970560,0.151598,98946.0,98937.0,0.0149383]
[1738689970766,1.5,98945.0,98937.0,0.0149383]
[1738689971169,1.5,98945.0,98938.0,0.151609]
[1738689971396,0.151597,98947.0,98938.0,0.151609]
[1738689971596,0.11940437,98950.0,98942.0,0.001]
[1738689971796,0.11948482,98950.0,98942.0,0.001]
[1738689971967,0.00980045,98950.0,98942.0,0.001]
[1738689972162,0.0185491,98949.0,98944.0,0.151599]
[1738689972362,0.151601,98944.0,98942.0,0.001]
[1738689972846,0.0185491,98949.0,98937.0,0.0149383]
[1738689972847,0.151599,98945.0,98937.0,0.0149383]
[1738689973023,0.10238506,98948.0,98937.0,0.0149383]
[1738689973182,0.151601,98944.0,98938.0,0.001]
[1738689973382,0.151603,98943.0,98938.0,0.001]
[1738689973582,0.151607,98940.0,98937.0,0.0149383]
[1738689973789,0.10238506,98948.0,98937.0,0.0149383]
[1738689974014,0.0185491,98943.0,98937.0,0.0149383]
[1738689974590,0.1701521,98943.0,98937.0,0.0149383]
[1738689974792,0.0185491,98943.0,98937.0,0.0159383]
[1738689975421,0.0185491,98942.0,98941.0,0.151604]
[1738689976517,0.0185491,98942.0,98937.0,0.0159383]
[1738689976712,8.045e-05,98950.0,98937.0,0.2170863]
[1738689976872,8.045e-05,98950.0,98942.0,0.151602]
[1738689977275,8.045e-05,98950.0,98941.0,0.152605]
[1738689977472,8.045e-05,98950.0,98938.0,0.0012127]
[1738689977701,0.01854824,98949.0,98948.0,0.151593]
[1738689978767,0.01854824,98949.0,98948.0,0.15280566]
[1738689978976,0.01854824,98949.0,98948.0,0.15280557]
[1738689979146,8.045e-05,98950.0,98948.0,0.151593]
[1738689980338,8.045e-05,98950.0,98948.0,0.152593]
[1738689980920,0.151594,98948.0,98941.0,0.0001069]
[1738689981117,0.151603,98942.0,98941.0,0.0001069]
[1738689981466,1.651603,98942.0,98941.0,0.0001069]
[1738689982648,1.69997998,98942.0,98941.0,0.0001069]
[1738689983053,1.70197998,98942.0,98941.0,0.0001069]
[1738689984246,1.71460762,98942.0,98941.0,0.0001069]
[1738689984459,1.56300462,98942.0,98941.0,0.0001069]
[1738689984803,1.71460762,98942.0,98941.0,0.0001069]
[1738689985021,1.56300462,98942.0,98941.0,0.0001069]
[1738689985498,1.51859028,98942.0,98941.0,0.0001069]
[1738689985629,1.67019328,98942.0,98941.0,0.0001069]
[1738689985841,1.51859028,98942.0,98941.0,0.0011069]
[1738689986058,1.51859028,98942.0,98936.0,0.11763121]
[1738689986274,1.52059028,98942.0,98931.0,0.0005]
[1738689986472,1.653604,98942.0,98941.0,0.001]
[1738689986825,1.653603,98942.0,98941.0,0.001]
[1738689986964,0.20214,98941.0,98931.0,0.0005]
[1738689987180,0.10249472,98940.0,98931.0,0.0005]
[1738689987377,0.151611,98937.0,98936.0,0.001]
[1738689987919,0.151619,98932.0,98931.0,0.0015]
[1738689988129,0.151619,98932.0,98931.0,0.0025]
[1738689988429,1.651619,98932.0,98931.0,0.0025]
[1738689989240,1.651619,98932.0,98931.0,0.0015]
[1738689989445,1.85649878,98932.0,98931.0,0.0005]
[1738689989664,1.91770766,98932.0,98931.0,0.0005]
[1738689989865,1.81521294,98932.0,98931.0,0.0005]
[1738689990290,1.71482788,98932.0,98931.0,0.0005]
[1738689990519,1.71282788,98932.0,98931.0,0.0005]
[1738689990725,1.80358356,98932.0,98931.0,0.0005]
[1738689990937,1.90907828,98932.0,98931.0,0.0005]
[1738689991167,1.80258356,98932.0,98931.0,0.0005]
[1738689991382,1.7001985,98932.0,98931.0,0.0005]
[1738689991614,1.7021985,98932.0,98931.0,0.0005]
[1738689991814,1.5505795,98932.0,98931.0,0.0005]
[1738689992021,0.0602995,98932.0,98931.0,0.0005]
[1738689992644,0.0582995,98932.0,98931.0,0.0006069]
[1738689992889,0.0582995,98932.0,98931.0,0.1522269]
[1738689993111,0.0592995,98932.0,98931.0,0.1522269]
[1738689993318,0.0662995,98932.0,98931.0,0.0006069]
[1738689993504,0.0582995,98932.0,98931.0,0.0006069]
[1738689993705,0.0515795,98932.0,98931.0,0.0006069]
[1738689993845,0.0525795,98932.0,98931.0,0.0006069]
[1738689994705,0.02268442,98932.0,98931.0,0.0006069]
[1738689996390,1.52268442,98932.0,98931.0,0.0006069]
[1738689998025,1.51968442,98932.0,98931.0,0.0006069]
[1738689998461,0.01968442,98932.0,98931.0,0.03205899]
[1738689998671,0.001,98932.0,98931.0,0.03205899]
[1738689998874,1.5,98940.0,98935.0,0.202151]
[1738689999413,1.5,98940.0,98939.0,0.151608]
[1738689999642,0.00972,98946.0,98942.0,0.151602]
[1738689999843,8.045e-05,98950.0,98933.0,0.00121273]
[1738690000042,1.65167245,98950.0,98941.0,0.151605]
[1738690000393,1.50008045,98950.0,98949.0,0.151593]
[1738690000590,1.50008045,98950.0,98948.0,0.151594]
[1738690000791,0.007,98946.0,98936.0,0.15]
[1738690001029,0.002,98946.0,98945.0,0.151599]
[1738690001259,0.002,98946.0,98945.0,0.18306624]
[1738690001466,0.002,98946.0,98945.0,0.28666388]
[1738690001618,0.002,98946.0,98945.0,0.2854513]
[1738690002233,0.00708045,98950.0,98945.0,0.2854513]
[1738690002413,0.00708045,98950.0,98949.0,0.151593]
[1738690002617,0.00208045,98950.0,98949.0,0.18306024]
[1738690003170,8.045e-05,98950.0,98949.0,0.18306024]
[1738690003997,8.045e-05,98950.0,98949.0,0.18406024]
[1738690004347,8.045e-05,98950.0,98949.0,0.18306024]
[1738690004789,8.045e-05,98950.0,98949.0,0.18406024]
[1738690005760,8.045e-05,98950.0,98949.0,0.1852728]
[1738690005963,8.045e-05,98950.0,98949.0,0.1842728]
[1738690006636,8.045e-05,98950.0,98949.0,0.18306024]
[1738690008124,8.045e-05,98950.0,98949.0,0.151593]
[1738690008972,8.045e-05,98950.0,98947.0,0.151594]
[1738690009173,8.045e-05,98950.0,98947.0,0.151596]
[1738690009562,8.045e-05,98950.0,98937.0,0.15]
[1738690009758,8.045e-05,98950.0,98940.0,0.202142]
[1738690010088,8.045e-05,98950.0,98948.0,0.151593]
[1738690011259,8.045e-05,98950.0,98945.0,0.20213]
[1738690011260,8.045e-05,98950.0,98947.0,0.151595]
[1738690011450,8.045e-05,98950.0,98945.0,0.20213]
[1738690012094,8.045e-05,98950.0,98941.0,0.15]
[1738690012336,8.045e-05,98950.0,98939.0,0.15]
[1738690012454,8.045e-05,98950.0,98948.0,0.151593]
[1738690012861,8.045e-05,98950.0,98948.0,0.151594]
[1738690013259,8.045e-05,98950.0,98945.0,0.202131]
[1738690013500,8.045e-05,98950.0,98948.0,0.151594]
[1738690013726,8.045e-05,98950.0,98945.0,0.151598]
[1738690014041,8.045e-05,98950.0,98943.0,0.151602]
[1738690014441,8.045e-05,98950.0,98944.0,0.1516]
[1738690014795,8.045e-05,98950.0,98933.0,0.00121269]
[1738690015001,8.045e-05,98950.0,98944.0,0.1516]
[1738690015554,8.045e-05,98950.0,98947.0,0.151595]
[1738690015696,8.045e-05,98950.0,98944.0,0.202133]
[1738690015918,8.045e-05,98950.0,98946.0,0.151597]
[1738690016371,8.045e-05,98950.0,98934.0,0.202154]
[1738690016590,8.045e-05,98950.0,98935.0,0.00121268]
[1738690016816,0.151594,98948.0,98942.0,0.151603]
[1738690017034,0.15167345,98950.0,98942.0,0.151603]
[1738690017287,8.045e-05,98950.0,98937.0,0.0012127]
[1738690017506,0.00030495,98950.0,98945.0,0.151598]
[1738690017711,0.00030495,98950.0,98942.0,0.202137]
[1738690017982,0.00030495,98950.0,98945.0,0.151598]
[1738690018437,0.00030495,98950.0,98943.0,0.202134]
[1738690018699,0.00030495,98950.0,98935.0,0.15]
[1738690018928,0.00030495,98950.0,98945.0,0.151597]
[1738690020020,0.00030495,98950.0,98857.0,0.00972]
[1738690020021,0.151602,98943.0,98928.0,0.278165]
[1738690020210,0.151602,98944.0,98934.0,0.151614]
[1738690020418,0.151602,98944.0,98932.0,0.202159]
[1738690020419,0.00030495,98950.0,98932.0,0.202159]
[1738690020622,0.00030495,98950.0,98927.0,0.0001068]
[1738690020623,1.5,98942.0,98927.0,0.0001068]
[1738690020827,0.151619,98932.0,98927.0,0.0001068]
[1738690021487,0.33560406,98932.0,98927.0,0.0001068]
[1738690021689,0.48560406,98932.0,98927.0,0.0001068]
[1738690022111,1.98560406,98932.0,98931.0,1e-08]
[1738690022353,0.151639,98919.0,98889.0,0.09033761]
[1738690022573,0.56104406,98919.0,98889.0,0.09033761]
[1738690022778,0.382165,98902.0,98889.0,0.09033761]
[1738690023007,0.151683,98890.0,98889.0,0.09033761]
[1738690023208,0.26923636,98890.0,98889.0,0.09033761]
[1738690023406,0.25406806,98890.0,98889.0,0.09033761]
[1738690023678,0.26438058,98890.0,98889.0,0.09033761]
[1738690023932,0.26446095,98890.0,98889.0,0.09033761]
[1738690024428,0.28428911,98890.0,98889.0,0.09033761]
[1738690024696,1.81318443,98890.0,98889.0,0.09033761]
[1738690024959,1.54880385,98890.0,98889.0,0.09033761]
[1738690025202,0.04880385,98890.0,98880.0,0.10968437]
[1738690025438,0.04880385,98890.0,98889.0,0.151685]
[1738690025960,0.04880385,98890.0,98886.0,0.00121337]
[1738690025961,8.037e-05,98890.0,98888.0,0.151686]
[1738690026161,0.00108037,98890.0,98889.0,0.00121338]
[1738690026550,0.00108037,98890.0,98887.0,0.202251]
[1738690026551,0.00108037,98890.0,98883.0,0.013387]
[1738690026751,8.037e-05,98890.0,98884.0,0.0012133]
[1738690028384,8.037e-05,98890.0,98884.0,0.10359836]
[1738690028860,8.037e-05,98890.0,98885.0,0.10238506]
[1738690029077,8.037e-05,98890.0,98886.0,0.00121325]
[1738690029292,8.037e-05,98890.0,98887.0,0.10359831]
[1738690029471,8.037e-05,98890.0,98887.0,0.10238506]
[1738690029648,8.037e-05,98890.0,98883.0,0.013494]
[1738690030459,0.151686,98889.0,98883.0,0.013494]
[1738690030860,8.037e-05,98890.0,98883.0,0.013494]
[1738690032144,8.037e-05,98890.0,98884.0,0.0012134]
[1738690032349,0.00108037,98890.0,98883.0,0.013494]
[1738690032799,8.037e-05,98890.0,98884.0,0.0012134]
[1738690033174,8.037e-05,98890.0,98883.0,0.013494]
[1738690034349,8.037e-05,98890.0,98888.0,0.151685]
[1738690034500,8.037e-05,98890.0,98889.0,0.00121329]
[1738690034700,8.037e-05,98890.0,98889.0,0.10359835]
[1738690034927,8.037e-05,98890.0,98889.0,0.17879835]
[1738690036660,8.037e-05,98890.0,98889.0,0.32879835]
[1738690036863,8.037e-05,98890.0,98889.0,0.37488506]
[1738690038991,8.037e-05,98890.0,98889.0,0.39788506]
[1738690039445,8.037e-05,98890.0,98889.0,0.40788506]
[1738690040035,8.037e-05,98890.0,98889.0,0.99036282]
[1738690040240,0.0802363,98917.0,98916.0,0.151643]
[1738690040457,0.0802363,98917.0,98916.0,0.40402806]
[1738690040796,0.0802363,98940.0,98916.0,0.40402806]
[1738690040797,0.0802363,98940.0,98926.0,0.301628]
[1738690041359,0.0802363,98940.0,98931.0,0.15162]
[1738690041923,0.0802363,98940.0,98931.0,0.15176068]
[1738690042263,0.202134,98945.0,98931.0,0.15176068]
[1738690042457,1.5,98947.0,98931.0,0.15176068]
[1738690042791,0.00222471,98932.0,98931.0,0.15297345]
[1738690043015,0.00222471,98932.0,98931.0,0.15176068]
[1738690043190,0.00322471,98932.0,98931.0,0.15176068]
[1738690045061,0.00322471,98932.0,98931.0,0.15297345]
[1738690046296,0.00322471,98932.0,98931.0,0.25535851]
[1738690046520,0.00322471,98932.0,98931.0,0.25414574]
[1738690046940,0.00222471,98932.0,98931.0,0.25414574]
[1738690047848,0.00022471,98932.0,98931.0,0.25414574]
[1738690048252,0.00022471,98932.0,98931.0,0.25614574]
[1738690048507,0.00022471,98932.0,98931.0,0.25514574]
[1738690048922,0.00022471,98932.0,98931.0,0.25614574]
[1738690049913,0.00022471,98932.0,98931.0,0.48184574]
[1738690051968,0.00022471,98932.0,98931.0,0.40614574]
[1738690052180,0.00022471,98932.0,98931.0,0.15376068]
[1738690052390,0.00022471,98932.0,98931.0,0.00214068]
[1738690052601,0.15184371,98932.0,98931.0,0.00214068]
[1738690052799,1.65184371,98932.0,98931.0,0.00214068]
[1738690053341,1.50022471,98932.0,98931.0,0.15276068]
[1738690054262,0.00022471,98932.0,98931.0,0.15276068]
[1738690054474,0.00022471,98932.0,98931.0,0.15397344]
[1738690054696,0.00022471,98932.0,98931.0,0.2553585]
[1738690054895,0.00022471,98932.0,98931.0,0.25414574]
[1738690055154,0.00122471,98932.0,98931.0,0.25414574]
[1738690055343,0.00122471,98932.0,98931.0,0.25514574]
[1738690056012,0.00122471,98932.0,98931.0,0.40614574]
[1738690056216,0.00122471,98932.0,98931.0,0.47514574]
[1738690057516,0.00122471,98932.0,98931.0,0.48514574]
[1738690057731,0.00122471,98932.0,98931.0,0.48414574]
[1738690057932,0.00122471,98932.0,98931.0,0.51545839]
[1738690058155,0.00022471,98932.0,98931.0,0.52455493]
[1738690058361,0.00022471,98932.0,98931.0,0.52555493]
[1738690059135,0.00022471,98932.0,98931.0,0.52655493]
[1738690059545,0.00022471,98932.0,98931.0,0.52555493]
[1738690061014,0.00022471,98932.0,98931.0,0.48424228]
[1738690061209,0.06168551,98963.0,98941.0,0.15]
[1738690061431,0.151579,98959.0,98948.0,0.151594]
[1738690061632,0.0821,98955.0,98945.0,0.151598]
[1738690061839,1.5,98954.0,98947.0,0.151594]
[1738690062052,1.5,98954.0,98941.0,0.00121265]
[1738690062208,1.5,98954.0,98944.0,0.15]
[1738690062407,1.5,98954.0,98944.0,0.352132]
[1738690062638,1.5,98954.0,98946.0,0.151596]
[1738690063040,1.5,98954.0,98944.0,0.352133]
[1738690063041,1.5,98954.0,98948.0,0.202124]
[1738690063222,1.5,98954.0,98944.0,0.15]
[1738690063421,1.5,98954.0,98946.0,0.15]
[1738690063624,1.651586,98954.0,98946.0,0.15]
[1738690063843,1.5,98954.0,98946.0,0.301596]
[1738690064040,1.5,98954.0,98948.0,0.151594]
[1738690064237,1.5,98954.0,98949.0,0.151591]
[1738690064443,1.5,98954.0,98948.0,0.151594]
[1738690064648,1.5,98954.0,98949.0,0.151592]
[1738690064808,1.5,98954.0,98946.0,0.001]
[1738690065162,1.5,98954.0,98949.0,0.151592]
[1738690065301,1.5,98954.0,98947.0,0.151596]
[1738690065506,1.5,98954.0,98945.0,0.15]
[1738690065962,1.5,98954.0,98949.0,0.151593]
[1738690066167,1.50022428,98954.0,98949.0,0.151593]
[1738690066373,1.50022428,98954.0,98953.0,0.301587]
[1738690066549,0.00022428,98954.0,98953.0,0.40397206]
[1738690066950,0.00022428,98954.0,98953.0,0.42697206]
[1738690067269,0.00022428,98954.0,98953.0,0.43697206]
[1738690067495,0.00022428,98954.0,98953.0,0.46832837]
[1738690067891,2.8e-07,98954.0,98953.0,0.46832837]
[1738690069498,2.8e-07,98954.0,98953.0,0.46932837]
[1738690069702,2.8e-07,98954.0,98953.0,0.48032837]
[1738690069907,2.8e-07,98954.0,98953.0,0.55872837]
[1738690070468,2.8e-07,98954.0,98953.0,0.54872837]
[1738690070671,2.8e-07,98954.0,98953.0,0.55872837]
[1738690071157,1.5,98997.0,98953.0,0.55872837]
[1738690071158,0.0802363,98977.0,98965.0,0.15]
[1738690071294,0.0802363,98977.0,98976.0,0.301551]
[1738690071500,0.06146108,98989.0,98982.0,0.15]
[1738690071704,1.5,98997.0,98982.0,0.10238506]
[1738690071899,1.5,98997.0,98992.0,0.151526]
[1738690072313,1.5,98997.0,98993.0,0.151525]
[1738690072494,1.5,98997.0,98991.0,0.202037]
[1738690072683,1.5,98997.0,98992.0,0.151526]
[1738690072915,1.5,98997.0,98983.0,0.15]
[1738690073162,1.504,98997.0,98990.0,0.15153]
[1738690073392,1.501,98997.0,98983.0,0.15]
[1738690073585,0.151523,98995.0,98983.0,0.301541]
[1738690073811,1.504,98997.0,98977.0,0.15]
[1738690074043,1.504,98997.0,98980.0,0.15]
[1738690074240,0.151522,98996.0,98982.0,0.151542]
[1738690074467,1.504,98997.0,98977.0,0.00014068]
[1738690074674,1.504,98997.0,98977.0,0.00135301]
[1738690074675,0.0778,98996.0,98977.0,0.00135301]
[1738690074852,0.0778,98996.0,98977.0,0.00014068]
[1738690075009,1.5,98978.0,98977.0,0.00014068]
[1738690075204,1.5,98978.0,98977.0,0.15169068]
[1738690075446,1.5,98978.0,98977.0,0.00014068]
[1738690076014,1.5,98978.0,98977.0,0.00114068]
[1738690076214,1.5,98978.0,98977.0,0.15269068]
[1738690076622,1.5,98978.0,98977.0,0.00014068]
[1738690076825,1.5,98978.0,98977.0,0.00114068]
[1738690077048,1.5,98978.0,98977.0,0.00214068]
[1738690077615,1.6231,98978.0,98977.0,0.00214068]
[1738690078027,1.6231,98978.0,98977.0,0.00114068]
[1738690078250,1.6231,98978.0,98977.0,0.00014068]
[1738690078730,0.1241,98978.0,98977.0,0.00014068]
[1738690078937,0.0491,98978.0,98977.0,0.00014068]
[1738690079150,0.04932428,98978.0,98977.0,0.00014068]
[1738690080552,0.20087228,98978.0,98977.0,0.00014068]
[1738690081357,1.70087228,98978.0,98977.0,0.00014068]
[1738690081557,1.54932428,98978.0,98977.0,0.00014068]
[1738690081919,1.71958671,98978.0,98977.0,0.00014068]
[1738690083129,1.56803871,98978.0,98977.0,0.00014068]
[1738690084536,1.71958671,98978.0,98977.0,0.00014068]
[1738690085141,1.56803871,98978.0,98977.0,0.00014068]
[1738690085347,0.01993871,98978.0,98977.0,0.00014068]
[1738690085552,0.00122428,98978.0,98977.0,0.00014068]
[1738690086555,0.15277228,98978.0,98977.0,0.00014068]
[1738690086972,1.88655734,98978.0,98977.0,0.00014068]
[1738690087365,1.89659272,98978.0,98977.0,0.00014068]
[1738690088179,1.89759272,98978.0,98977.0,0.00014068]
[1738690088618,1.92131775,98978.0,98977.0,0.00014068]
[1738690088826,1.91431775,98978.0,98977.0,0.00014068]
[1738690088999,1.91831775,98978.0,98977.0,0.00014068]
[1738690089260,1.92731775,98978.0,98977.0,0.00014068]
[1738690089625,1.92331775,98978.0,98977.0,0.00014068]
[1738690089821,1.91431775,98978.0,98977.0,0.00014068]
[1738690090260,1.89559272,98978.0,98977.0,0.00014068]
[1738690090431,1.90459272,98978.0,98977.0,0.00014068]
[1738690091206,1.90859272,98978.0,98977.0,0.00024738]
[1738690091338,1.92905972,98978.0,98977.0,0.00024738]